[Event "Titled Tuesday Blitz June 13 Early 2023"]
[White "Bintang, Rasyid A. Hidayat"]
[Black "Eugene, Floryan"]
[WhiteFideId "7105355"]
[BlackFideId "20694784"]
[WhiteElo "2343"]
[BlackElo "2369"]
[Result "0-1"]
[Round "1"]
[TimeControl "180+2"]
[Date "2023.06.13"]
[WhiteClock "0:00:16"]
[BlackClock "0:00:16"]
[Board "145"]

1. d4 {[%clk 0:02:59]}  f5 {[%clk 0:02:56]} 2. Bf4 {[%clk 0:02:58]}  Nf6 {[%clk 0:02:54]} 3. e3 {[%clk 0:02:58]}  d6 {[%clk 0:02:52]} 4. Nd2 {[%clk 0:02:57]}  g6 {[%clk 0:02:44]} 5. h4 {[%clk 0:02:56]}  Bg7 {[%clk 0:02:36]} 6. h5 {[%clk 0:02:56]}  gxh5 {[%clk 0:02:30]} 7. Rxh5 {[%clk 0:02:56]}  Nxh5 {[%clk 0:02:29]} 8. Qxh5+ {[%clk 0:02:57]}  Kf8 {[%clk 0:02:27]} 9. Ngf3 {[%clk 0:02:55]}  Qe8 {[%clk 0:02:25]} 10. Qh2 {[%clk 0:02:53]}  Nc6 {[%clk 0:02:22]} 11. O-O-O {[%clk 0:02:53]}  e5 {[%clk 0:02:20]} 12. dxe5 {[%clk 0:02:51]}  dxe5 {[%clk 0:02:21]} 13. Bh6 {[%clk 0:02:51]}  Qg6 {[%clk 0:01:47]} 14. Bxg7+ {[%clk 0:02:46]}  Qxg7 {[%clk 0:01:44]} 15. Bb5 {[%clk 0:02:45]}  e4 {[%clk 0:01:41]} 16. Bxc6 {[%clk 0:02:41]}  bxc6 {[%clk 0:01:37]} 17. Nd4 {[%clk 0:02:42]}  c5 {[%clk 0:01:33]} 18. Nb5 {[%clk 0:02:39]}  Rb8 {[%clk 0:01:23]} 19. Qxc7 {[%clk 0:02:23]}  Qxc7 {[%clk 0:01:23]} 20. Nxc7 {[%clk 0:02:23]}  Kf7 {[%clk 0:01:17]} 21. Nc4 {[%clk 0:02:22]}  Be6 {[%clk 0:01:04]} 22. Nd6+ {[%clk 0:02:05]}  Ke7 {[%clk 0:01:00]} 23. Nxe6 {[%clk 0:01:21]}  Kxe6 {[%clk 0:01:01]} 24. Nc4 {[%clk 0:01:20]}  Rbd8 {[%clk 0:00:58]} 25. Rh1 {[%clk 0:01:21]}  h5 {[%clk 0:00:58]} 26. b3 {[%clk 0:01:16]}  h4 {[%clk 0:00:58]} 27. a4 {[%clk 0:01:03]}  Rdg8 {[%clk 0:00:57]} 28. Rh2 {[%clk 0:01:02]}  Rg4 {[%clk 0:00:51]} 29. Na3 {[%clk 0:00:39]}  a6 {[%clk 0:00:46]} 30. Nc4 {[%clk 0:00:35]}  Rhg8 {[%clk 0:00:41]} 31. Kb2 {[%clk 0:00:35]}  R8g6 {[%clk 0:00:37]} 32. f4 {[%clk 0:00:20]}  Rh6 {[%clk 0:00:24]} 33. Ne5 {[%clk 0:00:19]}  Rg8 {[%clk 0:00:22]} 34. Kc3 {[%clk 0:00:19]}  Rd8 {[%clk 0:00:22]} 35. Nc4 {[%clk 0:00:18]}  Rd1 {[%clk 0:00:21]} 36. b4 {[%clk 0:00:16]}  cxb4+ {[%clk 0:00:21]} 37. Kxb4 {[%clk 0:00:17]}  Kd5 {[%clk 0:00:20]} 38. Kc3 {[%clk 0:00:16]}  Rc6 {[%clk 0:00:19]} 39. Kb2 {[%clk 0:00:14]}  Rxc4 {[%clk 0:00:19]} 40. Rxh4 {[%clk 0:00:15]}  Rb4+ {[%clk 0:00:19]} 41. Kc3 {[%clk 0:00:15]}  Rc4+ {[%clk 0:00:19]} 42. Kb3 {[%clk 0:00:15]}  Rd2 {[%clk 0:00:20]} 43. Rh8 {[%clk 0:00:14]}  Rcxc2 {[%clk 0:00:19]} 44. Rd8+ {[%clk 0:00:15]}  Ke6 {[%clk 0:00:17]} 45. Re8+ {[%clk 0:00:15]}  Kf7 {[%clk 0:00:16]} 46. Rf8+ {[%clk 0:00:16]} 0-1


[Site "https://www.chess.com"]

[Event "Titled Tuesday Blitz June 13 Early 2023"]
[White "Chen, Justin"]
[Black "Bashirli, Saadat"]
[WhiteFideId "2098199"]
[BlackFideId "13429990"]
[WhiteElo "2289"]
[BlackElo "1408"]
[Result "1-0"]
[Round "1"]
[TimeControl "180+2"]
[Date "2023.06.13"]
[WhiteClock "0:00:17"]
[BlackClock "0:00:09"]
[Board "146"]

1. d4 {[%clk 0:02:57]}  d5 {[%clk 0:02:59]} 2. c4 {[%clk 0:02:58]}  e6 {[%clk 0:02:59]} 3. Nc3 {[%clk 0:02:58]}  c6 {[%clk 0:03:00]} 4. e4 {[%clk 0:02:58]}  dxe4 {[%clk 0:02:59]} 5. Nxe4 {[%clk 0:02:59]}  Bb4+ {[%clk 0:02:59]} 6. Bd2 {[%clk 0:02:59]}  Qxd4 {[%clk 0:02:59]} 7. Bxb4 {[%clk 0:03:00]}  Qxe4+ {[%clk 0:03:00]} 8. Be2 {[%clk 0:03:01]}  Na6 {[%clk 0:03:00]} 9. Ba5 {[%clk 0:03:00]}  b6 {[%clk 0:02:53]} 10. Bc3 {[%clk 0:03:01]}  Qxg2 {[%clk 0:02:49]} 11. Bf3 {[%clk 0:02:54]}  Qg6 {[%clk 0:02:46]} 12. Bxc6+ {[%clk 0:02:53]}  Ke7 {[%clk 0:02:46]} 13. Bxa8 {[%clk 0:02:46]}  Nh6 {[%clk 0:02:36]} 14. Qf3 {[%clk 0:02:18]}  Bd7 {[%clk 0:02:23]} 15. Be4 {[%clk 0:02:11]}  f5 {[%clk 0:02:19]} 16. Bc2 {[%clk 0:02:09]}  Rc8 {[%clk 0:02:14]} 17. O-O-O {[%clk 0:02:00]}  Bc6 {[%clk 0:02:05]} 18. Qd3 {[%clk 0:01:46]}  Ng4 {[%clk 0:01:31]} 19. Nh3 {[%clk 0:01:21]}  Nc5 {[%clk 0:01:20]} 20. Qd6+ {[%clk 0:01:20]}  Kf7 {[%clk 0:01:20]} 21. Rhg1 {[%clk 0:00:47]}  Qh6+ {[%clk 0:00:55]} 22. Nf4 {[%clk 0:00:44]}  Nxf2 {[%clk 0:00:54]} 23. Rxg7+ {[%clk 0:00:31]}  Qxg7 {[%clk 0:00:49]} 24. Bxg7 {[%clk 0:00:32]}  Nxd1 {[%clk 0:00:44]} 25. Bxd1 {[%clk 0:00:17]}  Kxg7 {[%clk 0:00:13]} 26. Qe7+ {[%clk 0:00:16]}  Kg8 {[%clk 0:00:11]} 27. Nxe6 {[%clk 0:00:15]}  Nxe6 {[%clk 0:00:09]} 28. Qxe6+ {[%clk 0:00:16]}  Kg7 {[%clk 0:00:08]} 29. Qxc8 {[%clk 0:00:16]}  Be4 {[%clk 0:00:08]} 30. Qc7+ {[%clk 0:00:14]}  Kg6 {[%clk 0:00:09]} 31. Qxa7 {[%clk 0:00:14]}  Kg5 {[%clk 0:00:10]} 32. Qxb6 {[%clk 0:00:15]}  Kf4 {[%clk 0:00:10]} 33. c5 {[%clk 0:00:16]}  h5 {[%clk 0:00:10]} 34. c6 {[%clk 0:00:16]}  h4 {[%clk 0:00:11]} 35. c7 {[%clk 0:00:17]}  h3 {[%clk 0:00:10]} 36. c8=Q {[%clk 0:00:17]}  Bd3 {[%clk 0:00:10]} 37. Qcc7+ {[%clk 0:00:17]}  Kg5 {[%clk 0:00:09]} 38. Qe3+ {[%clk 0:00:16]}  f4 {[%clk 0:00:09]} 39. Qcxf4+ {[%clk 0:00:16]}  Kg6 {[%clk 0:00:09]} 40. Qe6+ {[%clk 0:00:16]}  Kg7 {[%clk 0:00:09]} 41. Qfh6# {[%clk 0:00:17]} 1-0


[Site "https://www.chess.com"]

[Event "Titled Tuesday Blitz June 13 Early 2023"]
[White "Georg, Heinz"]
[Black "Agibileg, Uurtsaikh"]
[WhiteFideId "4607295"]
[BlackFideId "4901606"]
[WhiteElo "2340"]
[BlackElo "2353"]
[Result "0-1"]
[Round "1"]
[TimeControl "180+2"]
[Date "2023.06.13"]
[WhiteClock "0:00:00"]
[BlackClock "0:00:35"]
[Board "147"]

1. e4 {[%clk 0:02:59]}  c5 {[%clk 0:02:59]} 2. Nf3 {[%clk 0:02:59]}  e6 {[%clk 0:03:00]} 3. b3 {[%clk 0:02:58]}  Nf6 {[%clk 0:02:58]} 4. e5 {[%clk 0:02:58]}  Nd5 {[%clk 0:02:58]} 5. c4 {[%clk 0:02:58]}  Nc7 {[%clk 0:02:52]} 6. Bb2 {[%clk 0:02:57]}  Nc6 {[%clk 0:02:51]} 7. d4 {[%clk 0:02:57]}  cxd4 {[%clk 0:02:45]} 8. Nxd4 {[%clk 0:02:57]}  Nxe5 {[%clk 0:02:44]} 9. Nxe6 {[%clk 0:02:52]}  dxe6 {[%clk 0:02:37]} 10. Qxd8+ {[%clk 0:02:50]}  Kxd8 {[%clk 0:02:37]} 11. Bxe5 {[%clk 0:02:50]}  f6 {[%clk 0:02:38]} 12. Bc3 {[%clk 0:02:43]}  e5 {[%clk 0:02:30]} 13. g3 {[%clk 0:02:41]}  Bd7 {[%clk 0:02:11]} 14. Bg2 {[%clk 0:02:40]}  Bc6 {[%clk 0:02:12]} 15. Bxc6 {[%clk 0:02:36]}  bxc6 {[%clk 0:02:13]} 16. Nd2 {[%clk 0:02:36]}  a5 {[%clk 0:02:09]} 17. Ne4 {[%clk 0:02:29]}  Bb4 {[%clk 0:02:08]} 18. O-O-O+ {[%clk 0:02:28]}  Ke7 {[%clk 0:02:08]} 19. Kc2 {[%clk 0:02:19]}  Ne6 {[%clk 0:02:02]} 20. Rd3 {[%clk 0:01:57]}  Rhd8 {[%clk 0:01:57]} 21. Rhd1 {[%clk 0:01:57]}  Bxc3 {[%clk 0:01:54]} 22. Rxd8 {[%clk 0:01:44]}  Nxd8 {[%clk 0:01:52]} 23. Kxc3 {[%clk 0:01:41]}  Ne6 {[%clk 0:01:53]} 24. c5 {[%clk 0:01:28]}  Nd4 {[%clk 0:01:38]} 25. Kc4 {[%clk 0:01:21]}  Rb8 {[%clk 0:01:35]} 26. Nd6 {[%clk 0:00:42]}  Ke6 {[%clk 0:01:29]} 27. f4 {[%clk 0:00:40]}  Rb4+ {[%clk 0:01:27]} 28. Kc3 {[%clk 0:00:40]}  Kd5 {[%clk 0:00:55]} 29. fxe5 {[%clk 0:00:39]}  fxe5 {[%clk 0:00:55]} 30. Nc4 {[%clk 0:00:39]}  Rb5 {[%clk 0:00:55]} 31. Re1 {[%clk 0:00:36]}  Nf3 {[%clk 0:00:48]} 32. Re3 {[%clk 0:00:31]}  e4 {[%clk 0:00:48]} 33. Nb6+ {[%clk 0:00:17]}  Kxc5 {[%clk 0:00:47]} 34. Nd7+ {[%clk 0:00:12]}  Kd6 {[%clk 0:00:45]} 35. Nf8 {[%clk 0:00:11]}  Rc5+ {[%clk 0:00:41]} 36. Kb2 {[%clk 0:00:09]}  Kd5 {[%clk 0:00:39]} 37. Nxh7 {[%clk 0:00:08]}  Kd4 {[%clk 0:00:39]} 38. Re2 {[%clk 0:00:07]}  Kd3 {[%clk 0:00:39]} 39. Rg2 {[%clk 0:00:00]}  e3 {[%clk 0:00:35]} 0-1


[Site "https://www.chess.com"]

[Event "Titled Tuesday Blitz June 13 Early 2023"]
[White "Arabidze, Meri"]
[Black "Gertler, David"]
[WhiteFideId "13604040"]
[BlackFideId "2017377"]
[WhiteElo "2405"]
[BlackElo "2336"]
[Result "1-0"]
[Round "1"]
[TimeControl "180+2"]
[Date "2023.06.13"]
[WhiteClock "0:01:48"]
[BlackClock "0:00:19"]
[Board "148"]

1. d4 {[%clk 0:02:59]}  Nf6 {[%clk 0:02:59]} 2. c4 {[%clk 0:02:59]}  Nc6 {[%clk 0:02:59]} 3. d5 {[%clk 0:02:59]}  Ne5 {[%clk 0:02:59]} 4. e4 {[%clk 0:02:53]}  e6 {[%clk 0:02:54]} 5. Nc3 {[%clk 0:02:53]}  Bb4 {[%clk 0:02:53]} 6. Qd4 {[%clk 0:02:50]}  d6 {[%clk 0:02:50]} 7. f3 {[%clk 0:02:46]}  Qe7 {[%clk 0:02:25]} 8. Be3 {[%clk 0:02:45]}  Bc5 {[%clk 0:02:24]} 9. Qd2 {[%clk 0:02:45]}  Bxe3 {[%clk 0:02:23]} 10. Qxe3 {[%clk 0:02:46]}  exd5 {[%clk 0:02:23]} 11. cxd5 {[%clk 0:02:46]}  O-O {[%clk 0:02:22]} 12. Bb5 {[%clk 0:02:39]}  c5 {[%clk 0:02:20]} 13. Nge2 {[%clk 0:02:26]}  a6 {[%clk 0:02:20]} 14. Bd3 {[%clk 0:02:25]}  b5 {[%clk 0:02:20]} 15. O-O {[%clk 0:02:24]}  Bd7 {[%clk 0:01:36]} 16. Ng3 {[%clk 0:01:56]}  b4 {[%clk 0:01:31]} 17. Nce2 {[%clk 0:01:56]}  c4 {[%clk 0:01:30]} 18. Bc2 {[%clk 0:01:55]}  Rfe8 {[%clk 0:01:20]} 19. Nd4 {[%clk 0:01:55]}  g6 {[%clk 0:01:15]} 20. Rae1 {[%clk 0:01:55]}  Bb5 {[%clk 0:01:10]} 21. h3 {[%clk 0:01:51]}  c3 {[%clk 0:01:05]} 22. Nxb5 {[%clk 0:01:51]}  axb5 {[%clk 0:01:05]} 23. bxc3 {[%clk 0:01:51]}  Ra3 {[%clk 0:00:53]} 24. Bb3 {[%clk 0:01:49]}  bxc3 {[%clk 0:00:44]} 25. f4 {[%clk 0:01:49]}  Nc4 {[%clk 0:00:40]} 26. Qxc3 {[%clk 0:01:49]}  Qa7+ {[%clk 0:00:36]} 27. Kh2 {[%clk 0:01:48]}  Qc5 {[%clk 0:00:19]} 28. Qxf6 {[%clk 0:01:48]} 1-0


[Site "https://www.chess.com"]

[Event "Titled Tuesday Blitz June 13 Early 2023"]
[White "drdaro"]
[Black "Miranda, Rafael"]
[BlackFideId "130990"]
[WhiteElo "2329"]
[BlackElo "2204"]
[Result "0-1"]
[Round "1"]
[TimeControl "180+2"]
[Date "2023.06.13"]
[WhiteClock "0:00:00"]
[BlackClock "0:00:17"]
[Board "149"]

1. d4 {[%clk 0:02:56]}  Nf6 {[%clk 0:02:59]} 2. Nf3 {[%clk 0:02:53]}  d5 {[%clk 0:02:59]} 3. c4 {[%clk 0:02:49]}  e6 {[%clk 0:02:58]} 4. g3 {[%clk 0:02:46]}  Be7 {[%clk 0:02:58]} 5. Bg2 {[%clk 0:02:44]}  O-O {[%clk 0:02:58]} 6. O-O {[%clk 0:02:44]}  c6 {[%clk 0:02:58]} 7. Qc2 {[%clk 0:02:43]}  b6 {[%clk 0:02:58]} 8. b3 {[%clk 0:02:39]}  Bb7 {[%clk 0:02:58]} 9. Nc3 {[%clk 0:02:39]}  Nbd7 {[%clk 0:02:54]} 10. Rd1 {[%clk 0:02:37]}  Qc8 {[%clk 0:02:44]} 11. Bb2 {[%clk 0:02:30]}  c5 {[%clk 0:02:42]} 12. cxd5 {[%clk 0:02:22]}  Nxd5 {[%clk 0:02:32]} 13. Nxd5 {[%clk 0:02:20]}  Bxd5 {[%clk 0:02:32]} 14. e4 {[%clk 0:02:21]}  Bb7 {[%clk 0:02:32]} 15. d5 {[%clk 0:02:18]}  exd5 {[%clk 0:02:30]} 16. exd5 {[%clk 0:02:19]}  Rd8 {[%clk 0:02:16]} 17. Nd2 {[%clk 0:01:10]}  Nf6 {[%clk 0:02:12]} 18. Nc4 {[%clk 0:01:02]}  Bxd5 {[%clk 0:01:27]} 19. Bxf6 {[%clk 0:00:54]}  Bxf6 {[%clk 0:01:27]} 20. Bxd5 {[%clk 0:00:49]}  Rxd5 {[%clk 0:01:26]} 21. Rxd5 {[%clk 0:00:47]}  Bxa1 {[%clk 0:01:26]} 22. Qe4 {[%clk 0:00:27]}  Bd4 {[%clk 0:01:07]} 23. Nd6 {[%clk 0:00:19]}  Qe6 {[%clk 0:01:07]} 24. Qf3 {[%clk 0:00:11]}  Rd8 {[%clk 0:00:50]} 25. Nf5 {[%clk 0:00:06]}  Rxd5 {[%clk 0:00:29]} 26. Qxd5 {[%clk 0:00:06]}  Qe1+ {[%clk 0:00:27]} 27. Kg2 {[%clk 0:00:06]}  Qxf2+ {[%clk 0:00:28]} 28. Kh3 {[%clk 0:00:07]}  Qf1+ {[%clk 0:00:22]} 29. Kg4 {[%clk 0:00:06]}  h5+ {[%clk 0:00:19]} 30. Kh4 {[%clk 0:00:01]}  Bf6+ {[%clk 0:00:17]} 31. Kxh5 {[%clk 0:00:00]}  Qxf5+ {[%clk 0:00:17]} 0-1


[Site "https://www.chess.com"]

[Event "Titled Tuesday Blitz June 13 Early 2023"]
[White "Schnaider, Ilan"]
[Black "Rian, Kapriaga"]
[WhiteFideId "169013"]
[BlackFideId "7103263"]
[WhiteElo "2224"]
[BlackElo "2328"]
[Result "0-1"]
[Round "1"]
[TimeControl "180+2"]
[Date "2023.06.13"]
[WhiteClock "0:00:59"]
[BlackClock "0:00:07"]
[Board "150"]

1. e4 {[%clk 0:03:00]}  c6 {[%clk 0:02:54]} 2. Nc3 {[%clk 0:03:00]}  d5 {[%clk 0:02:52]} 3. Nf3 {[%clk 0:03:01]}  dxe4 {[%clk 0:02:50]} 4. Nxe4 {[%clk 0:03:01]}  Nf6 {[%clk 0:02:50]} 5. Qe2 {[%clk 0:03:02]}  Nxe4 {[%clk 0:02:48]} 6. Qxe4 {[%clk 0:03:03]}  Qd5 {[%clk 0:02:47]} 7. Qh4 {[%clk 0:03:03]}  Bf5 {[%clk 0:02:44]} 8. Bc4 {[%clk 0:02:59]}  Qd6 {[%clk 0:02:22]} 9. d3 {[%clk 0:02:59]}  e6 {[%clk 0:02:18]} 10. Bf4 {[%clk 0:02:56]}  Qb4+ {[%clk 0:02:15]} 11. Bd2 {[%clk 0:02:52]}  Qb6 {[%clk 0:02:08]} 12. O-O {[%clk 0:02:51]}  Nd7 {[%clk 0:02:04]} 13. Qg3 {[%clk 0:02:50]}  Bg6 {[%clk 0:02:00]} 14. Rfe1 {[%clk 0:02:47]}  Be7 {[%clk 0:01:58]} 15. Bc3 {[%clk 0:02:46]}  O-O {[%clk 0:01:51]} 16. h4 {[%clk 0:02:41]}  Bf6 {[%clk 0:01:48]} 17. Ng5 {[%clk 0:02:18]}  Bxc3 {[%clk 0:01:41]} 18. bxc3 {[%clk 0:02:19]}  Rae8 {[%clk 0:01:27]} 19. Rab1 {[%clk 0:02:07]}  Qa5 {[%clk 0:01:24]} 20. Rxb7 {[%clk 0:02:06]}  Nc5 {[%clk 0:01:19]} 21. d4 {[%clk 0:02:02]}  Nxb7 {[%clk 0:01:15]} 22. Re3 {[%clk 0:01:52]}  Rd8 {[%clk 0:01:00]} 23. Be2 {[%clk 0:01:42]}  Nd6 {[%clk 0:00:46]} 24. Qh3 {[%clk 0:01:35]}  h6 {[%clk 0:00:37]} 25. Nf3 {[%clk 0:01:31]}  Bf5 {[%clk 0:00:27]} 26. Qg3 {[%clk 0:01:30]}  Bxc2 {[%clk 0:00:25]} 27. Ne5 {[%clk 0:01:29]}  Nf5 {[%clk 0:00:24]} 28. Qf4 {[%clk 0:01:21]}  Nxe3 {[%clk 0:00:23]} 29. Nxc6 {[%clk 0:01:22]}  Qxc3 {[%clk 0:00:20]} 30. Ne7+ {[%clk 0:01:09]}  Kh8 {[%clk 0:00:19]} 31. fxe3 {[%clk 0:01:10]}  Qe1+ {[%clk 0:00:17]} 32. Bf1 {[%clk 0:01:10]}  Bd3 {[%clk 0:00:17]} 33. Nc6 {[%clk 0:01:09]}  Be2 {[%clk 0:00:17]} 34. Ne5 {[%clk 0:01:00]}  Qxf1+ {[%clk 0:00:15]} 35. Qxf1 {[%clk 0:00:59]}  Bxf1 {[%clk 0:00:16]} 36. Kxf1 {[%clk 0:01:00]}  Rb8 {[%clk 0:00:15]} 37. Nd7 {[%clk 0:00:59]}  Kg8 {[%clk 0:00:13]} 38. Kf2 {[%clk 0:00:59]}  Rb2+ {[%clk 0:00:13]} 39. Kf3 {[%clk 0:01:00]}  Rxa2 {[%clk 0:00:13]} 40. e4 {[%clk 0:01:00]}  Rd2 {[%clk 0:00:09]} 41. Ne5 {[%clk 0:01:01]}  Rxd4 {[%clk 0:00:08]} 42. Nc6 {[%clk 0:01:02]}  Rd3+ {[%clk 0:00:09]} 43. Kf4 {[%clk 0:01:03]}  Rc3 {[%clk 0:00:09]} 44. Nd4 {[%clk 0:01:02]}  Rc5 {[%clk 0:00:09]} 45. Nb3 {[%clk 0:01:02]}  e5+ {[%clk 0:00:09]} 46. Kf5 {[%clk 0:01:02]}  Rb5 {[%clk 0:00:09]} 47. Nd2 {[%clk 0:01:02]}  a5 {[%clk 0:00:09]} 48. Nc4 {[%clk 0:01:03]}  a4 {[%clk 0:00:09]} 49. Nd6 {[%clk 0:01:03]}  Ra5 {[%clk 0:00:09]} 50. Nc4 {[%clk 0:01:03]}  a3 {[%clk 0:00:09]} 51. Nxa5 {[%clk 0:01:04]}  a2 {[%clk 0:00:09]} 52. Nb3 {[%clk 0:01:05]}  Rb8 {[%clk 0:00:09]} 53. Na1 {[%clk 0:01:05]}  Rb1 {[%clk 0:00:10]} 54. Nc2 {[%clk 0:01:06]}  Rc1 {[%clk 0:00:09]} 55. Ne3 {[%clk 0:01:06]}  a1=Q {[%clk 0:00:08]} 56. Nd5 {[%clk 0:01:07]}  Qd4 {[%clk 0:00:08]} 57. Ne7+ {[%clk 0:01:01]}  Kf8 {[%clk 0:00:09]} 58. Nd5 {[%clk 0:00:59]}  Rf1+ {[%clk 0:00:09]} 59. Nf4 {[%clk 0:00:59]}  Rxf4# {[%clk 0:00:07]} 0-1


[Site "https://www.chess.com"]

[Event "Titled Tuesday Blitz June 13 Early 2023"]
[White "Vlassov, Nikolai"]
[Black "De La Villa Garcia, Jesus Maria"]
[WhiteFideId "4103360"]
[BlackFideId "2200040"]
[WhiteElo "2324"]
[BlackElo "2324"]
[Result "1-0"]
[Round "1"]
[TimeControl "180+2"]
[Date "2023.06.13"]
[WhiteClock "0:01:27"]
[BlackClock "0:02:00"]
[Board "152"]

1. e4 {[%clk 0:02:56]}  c5 {[%clk 0:02:58]} 2. c3 {[%clk 0:02:56]}  Nf6 {[%clk 0:02:58]} 3. e5 {[%clk 0:02:56]}  Nd5 {[%clk 0:02:58]} 4. d4 {[%clk 0:02:56]}  cxd4 {[%clk 0:02:58]} 5. cxd4 {[%clk 0:02:56]}  d6 {[%clk 0:02:57]} 6. Bc4 {[%clk 0:02:55]}  Nb6 {[%clk 0:02:57]} 7. Bb3 {[%clk 0:02:55]}  Nc6 {[%clk 0:02:53]} 8. e6 {[%clk 0:02:53]}  Bxe6 {[%clk 0:02:51]} 9. d5 {[%clk 0:02:52]}  Bd7 {[%clk 0:02:38]} 10. dxc6 {[%clk 0:02:51]}  bxc6 {[%clk 0:02:38]} 11. Nf3 {[%clk 0:02:50]}  e5 {[%clk 0:02:34]} 12. O-O {[%clk 0:02:46]}  Be7 {[%clk 0:02:33]} 13. Nc3 {[%clk 0:02:44]}  O-O {[%clk 0:02:32]} 14. Re1 {[%clk 0:02:36]}  Kh8 {[%clk 0:02:32]} 15. h4 {[%clk 0:02:30]}  f6 {[%clk 0:02:31]} 16. h5 {[%clk 0:02:27]}  d5 {[%clk 0:02:29]} 17. Nh4 {[%clk 0:02:09]}  f5 {[%clk 0:02:00]} 18. Ng6+ {[%clk 0:01:27]} 1-0


[Site "https://www.chess.com"]

[Event "Titled Tuesday Blitz June 13 Early 2023"]
[White "babbilator"]
[Black "Orlov, Georgi"]
[BlackFideId "2011271"]
[WhiteElo "2317"]
[BlackElo "2626"]
[Result "0-1"]
[Round "1"]
[TimeControl "180+2"]
[Date "2023.06.13"]
[WhiteClock "0:00:00"]
[BlackClock "0:00:46"]
[Board "155"]

1. e4 {[%clk 0:02:58]}  e6 {[%clk 0:02:57]} 2. Nc3 {[%clk 0:02:57]}  b6 {[%clk 0:02:56]} 3. d4 {[%clk 0:02:57]}  Bb7 {[%clk 0:02:56]} 4. Nf3 {[%clk 0:02:51]}  Bb4 {[%clk 0:02:54]} 5. Bd3 {[%clk 0:02:51]}  Nf6 {[%clk 0:02:54]} 6. Qe2 {[%clk 0:02:44]}  d5 {[%clk 0:02:52]} 7. exd5 {[%clk 0:02:37]}  Qxd5 {[%clk 0:02:51]} 8. O-O {[%clk 0:02:07]}  Bxc3 {[%clk 0:02:50]} 9. bxc3 {[%clk 0:02:06]}  Nbd7 {[%clk 0:02:50]} 10. a4 {[%clk 0:01:59]}  Qh5 {[%clk 0:02:48]} 11. Ne5 {[%clk 0:01:46]}  Qxe2 {[%clk 0:02:47]} 12. Bxe2 {[%clk 0:01:46]}  Nxe5 {[%clk 0:02:46]} 13. dxe5 {[%clk 0:01:45]}  Nd7 {[%clk 0:02:43]} 14. f4 {[%clk 0:01:39]}  a5 {[%clk 0:02:41]} 15. Ba3 {[%clk 0:01:30]}  Ba6 {[%clk 0:02:28]} 16. Bf3 {[%clk 0:01:11]}  O-O-O {[%clk 0:02:25]} 17. Rfd1 {[%clk 0:01:09]}  Bb7 {[%clk 0:02:23]} 18. Be2 {[%clk 0:01:05]}  Nb8 {[%clk 0:02:06]} 19. Be7 {[%clk 0:00:58]}  Rd7 {[%clk 0:01:54]} 20. Rxd7 {[%clk 0:00:53]}  Kxd7 {[%clk 0:01:53]} 21. Bh4 {[%clk 0:00:51]}  Bc6 {[%clk 0:01:50]} 22. Kf2 {[%clk 0:00:42]}  Kc8 {[%clk 0:01:48]} 23. g4 {[%clk 0:00:40]}  h6 {[%clk 0:01:45]} 24. Kg3 {[%clk 0:00:17]}  Re8 {[%clk 0:01:38]} 25. Kf2 {[%clk 0:00:14]}  Nd7 {[%clk 0:01:35]} 26. Ke3 {[%clk 0:00:07]}  Nc5 {[%clk 0:01:31]} 27. Bb5 {[%clk 0:00:07]}  Bxb5 {[%clk 0:01:27]} 28. axb5 {[%clk 0:00:07]}  Rg8 {[%clk 0:01:22]} 29. Rd1 {[%clk 0:00:04]}  g5 {[%clk 0:01:19]} 30. fxg5 {[%clk 0:00:05]}  hxg5 {[%clk 0:01:19]} 31. Bg3 {[%clk 0:00:05]}  Na4 {[%clk 0:01:08]} 32. Be1 {[%clk 0:00:02]}  Nb2 {[%clk 0:00:52]} 33. Rd4 {[%clk 0:00:00]}  Rd8 {[%clk 0:00:46]} 0-1


[Site "https://www.chess.com"]

[Event "Titled Tuesday Blitz June 13 Early 2023"]
[White "Wadsworth, Matthew J"]
[Black "Vifleemskaia, Svetlana"]
[WhiteFideId "415804"]
[BlackFideId "4129490"]
[WhiteElo "2347"]
[BlackElo "1930"]
[Result "1/2-1/2"]
[Round "1"]
[TimeControl "180+2"]
[Date "2023.06.13"]
[WhiteClock "0:00:10"]
[BlackClock "0:00:04"]
[Board "158"]

1. Nf3 {[%clk 0:02:59]}  Nf6 {[%clk 0:02:55]} 2. g3 {[%clk 0:03:00]}  b5 {[%clk 0:02:55]} 3. Bg2 {[%clk 0:02:59]}  Bb7 {[%clk 0:02:55]} 4. O-O {[%clk 0:02:59]}  e6 {[%clk 0:02:54]} 5. d3 {[%clk 0:02:59]}  Be7 {[%clk 0:02:53]} 6. e4 {[%clk 0:02:59]}  d6 {[%clk 0:02:53]} 7. Nd4 {[%clk 0:02:59]}  c6 {[%clk 0:02:30]} 8. a4 {[%clk 0:02:51]}  b4 {[%clk 0:02:28]} 9. a5 {[%clk 0:02:50]}  O-O {[%clk 0:02:24]} 10. Nb3 {[%clk 0:02:43]}  Na6 {[%clk 0:02:21]} 11. N1d2 {[%clk 0:02:40]}  Qc7 {[%clk 0:02:18]} 12. Nc4 {[%clk 0:02:37]}  d5 {[%clk 0:02:12]} 13. Bf4 {[%clk 0:02:36]}  Qd8 {[%clk 0:02:07]} 14. Ne5 {[%clk 0:02:31]}  Nd7 {[%clk 0:02:05]} 15. Nxd7 {[%clk 0:02:03]}  Qxd7 {[%clk 0:02:04]} 16. d4 {[%clk 0:02:02]}  Rfd8 {[%clk 0:01:47]} 17. h4 {[%clk 0:01:54]}  dxe4 {[%clk 0:01:36]} 18. Bxe4 {[%clk 0:01:53]}  c5 {[%clk 0:01:36]} 19. Qf3 {[%clk 0:01:30]}  Bxe4 {[%clk 0:01:29]} 20. Qxe4 {[%clk 0:01:31]}  c4 {[%clk 0:01:22]} 21. Nc5 {[%clk 0:01:28]}  Nxc5 {[%clk 0:00:58]} 22. dxc5 {[%clk 0:01:25]}  Qd5 {[%clk 0:00:50]} 23. Qxd5 {[%clk 0:01:22]}  Rxd5 {[%clk 0:00:49]} 24. c6 {[%clk 0:01:22]}  Rc5 {[%clk 0:00:49]} 25. Ra4 {[%clk 0:01:10]}  Rxc6 {[%clk 0:00:47]} 26. Rd1 {[%clk 0:01:07]}  f6 {[%clk 0:00:39]} 27. Rd7 {[%clk 0:01:04]}  Kf8 {[%clk 0:00:39]} 28. a6 {[%clk 0:01:02]}  e5 {[%clk 0:00:38]} 29. Be3 {[%clk 0:01:01]}  Ke8 {[%clk 0:00:36]} 30. Rxa7 {[%clk 0:00:59]}  Rxa7 {[%clk 0:00:29]} 31. Bxa7 {[%clk 0:00:58]}  Rc8 {[%clk 0:00:28]} 32. Be3 {[%clk 0:00:53]}  Kd7 {[%clk 0:00:27]} 33. a7 {[%clk 0:00:53]}  Ra8 {[%clk 0:00:27]} 34. c3 {[%clk 0:00:53]}  Kc6 {[%clk 0:00:16]} 35. cxb4 {[%clk 0:00:42]}  Kb5 {[%clk 0:00:15]} 36. Ra5+ {[%clk 0:00:39]}  Kxb4 {[%clk 0:00:15]} 37. Bd2+ {[%clk 0:00:40]}  Kb3 {[%clk 0:00:15]} 38. Bc3 {[%clk 0:00:39]}  Bd6 {[%clk 0:00:06]} 39. Rb5+ {[%clk 0:00:36]}  Kc2 {[%clk 0:00:06]} 40. Rb7 {[%clk 0:00:28]}  Bc5 {[%clk 0:00:06]} 41. Rc7 {[%clk 0:00:27]}  Bxa7 {[%clk 0:00:05]} 42. Rxg7 {[%clk 0:00:25]}  Bd4 {[%clk 0:00:04]} 43. Rxh7 {[%clk 0:00:21]}  Ra1+ {[%clk 0:00:03]} 44. Kg2 {[%clk 0:00:21]}  Bxc3 {[%clk 0:00:04]} 45. bxc3 {[%clk 0:00:21]}  Kxc3 {[%clk 0:00:05]} 46. Rc7 {[%clk 0:00:20]}  Kd3 {[%clk 0:00:04]} 47. h5 {[%clk 0:00:18]}  c3 {[%clk 0:00:04]} 48. h6 {[%clk 0:00:18]}  c2 {[%clk 0:00:04]} 49. h7 {[%clk 0:00:18]}  Ra8 {[%clk 0:00:04]} 50. Kf3 {[%clk 0:00:16]}  Kd2 {[%clk 0:00:04]} 51. Rd7+ {[%clk 0:00:16]}  Ke1 {[%clk 0:00:03]} 52. Rc7 {[%clk 0:00:15]}  Kd1 {[%clk 0:00:03]} 53. Ke4 {[%clk 0:00:15]}  c1=Q {[%clk 0:00:03]} 54. Rxc1+ {[%clk 0:00:15]}  Kxc1 {[%clk 0:00:04]} 55. Kf5 {[%clk 0:00:16]}  Rh8 {[%clk 0:00:05]} 56. Kxf6 {[%clk 0:00:08]}  Rxh7 {[%clk 0:00:04]} 57. Kxe5 {[%clk 0:00:09]}  Rh2 {[%clk 0:00:03]} 58. f4 {[%clk 0:00:09]}  Rg2 {[%clk 0:00:04]} 59. f5 {[%clk 0:00:08]}  Rxg3 {[%clk 0:00:04]} 60. f6 {[%clk 0:00:09]}  Rf3 {[%clk 0:00:04]} 61. Ke6 {[%clk 0:00:09]}  Kd2 {[%clk 0:00:04]} 62. f7 {[%clk 0:00:09]}  Rxf7 {[%clk 0:00:04]} 63. Kxf7 {[%clk 0:00:10]} 1/2-1/2


[Site "https://www.chess.com"]